fUST/lending_fUST_20240802
["ID","MTS","AMOUNT","RATE_DAILY","PERIOD"]
[333818947,1722528647280,-785.38,0.00015068,2]
[333818948,1722528647289,-500.0,0.00015068,2]
[333818949,1722528647299,-500.0,0.00015068,2]
[333818950,1722528647309,-507.52,0.00015068,2]
[333818951,1722528647319,-815.61,0.00015068,2]
[333818952,1722528647329,-500.0,0.00015068,2]
[333818953,1722528647338,-812.04,0.00015068,2]
[333818954,1722528647347,-500.0,0.00015068,2]
[333818955,1722528647356,-500.0,0.00015068,2]
[333818956,1722528647368,-2585.36,0.00015068,2]
[333818957,1722528647378,-547.45,0.00015068,2]
[333818958,1722528647387,-500.0,0.00015068,2]
[333818959,1722528647399,-500.0,0.00015068,2]
[333818960,1722528647408,-1517.4,0.00015068,2]
[333818961,1722528647418,-652.72,0.00015068,2]
[333818962,1722528647428,-862.86,0.00015068,2]
[333818963,1722528647437,-500.0,0.00015068,2]
[333818964,1722528647446,-500.0,0.00015068,2]
[333818965,1722528647455,-500.0,0.00015068,2]
[333818966,1722528647464,-500.0,0.00015068,2]
[333818967,1722528647474,-500.0,0.00015068,2]
[333818968,1722528647483,-500.0,0.00015068,2]
[333818969,1722528647493,-500.0,0.00015068,2]
[333818970,1722528647503,-500.0,0.00015068,2]
[333818971,1722528647512,-500.0,0.00015068,2]
[333818972,1722528647522,-500.0,0.00015068,2]
[333818973,1722528647532,-500.0,0.00015068,2]
[333818974,1722528647542,-500.0,0.00015068,2]
[333818975,1722528647552,-500.0,0.00015068,2]
[333818976,1722528647561,-700.06,0.00015068,2]
[333818977,1722528647571,-500.0,0.00015068,2]
[333818978,1722528647581,-500.0,0.00015068,2]
[333818979,1722528647693,-548.51,0.00015068,2]
[333818980,1722528647703,-612.69,0.00015068,2]
[333818981,1722528647713,-500.0,0.00015068,2]
[333818982,1722528647722,-500.0,0.00015342,2]
[333818983,1722528647731,-500.0,0.00015342,2]
[333818984,1722528647757,-500.0,0.00015342,2]
[333818985,1722528647767,-500.0,0.00015342,2]
[333818986,1722528647777,-500.0,0.00015342,2]
[333818987,1722528647787,-500.0,0.00015342,2]
[333818988,1722528647798,-500.0,0.00015342,2]
[333818989,1722528647808,-500.0,0.00015342,2]
[333818990,1722528647818,-500.0,0.00015342,2]
[333818991,1722528647827,-500.0,0.00015342,2]
[333818992,1722528647836,-500.0,0.00015342,2]
[333818993,1722528647845,-550.1,0.00015342,2]
[333818994,1722528647854,-500.0,0.00015342,2]
[333818995,1722528647863,-581.22471447,0.00015342,2]
[333818996,1722528647872,-500.0,0.00015342,2]
[333818997,1722528647881,-500.0,0.00015342,2]
[333818998,1722528647890,-500.0,0.00015342,2]
[333818999,1722528647899,-500.0,0.00015342,2]
[333819000,1722528647908,-907.32,0.00015342,2]
[333819001,1722528647918,-1331.99,0.00015342,2]
[333819002,1722528647927,-500.0,0.00015342,2]
[333819003,1722528647937,-838.19,0.00015342,2]
[333819004,1722528647947,-561.83,0.00015342,2]
[333819005,1722528647957,-500.0,0.00015342,2]
[333819006,1722528647967,-874.15,0.00015342,2]
[333819007,1722528647976,-538.3,0.00015342,2]
[333819008,1722528647986,-2132.52,0.00015342,2]
[333819009,1722528647995,-1895.04,0.00015342,2]
[333819010,1722528648006,-500.0,0.00015342,2]
[333819011,1722528648016,-500.0,0.00015342,2]
[333819012,1722528648025,-500.0,0.00015342,2]
[333819013,1722528648035,-500.0,0.00015342,2]
[333819014,1722528648045,-500.0,0.00015342,2]
[333819015,1722528648056,-500.0,0.00015342,2]
[333819016,1722528648066,-2759.59,0.00015342,2]
[333819017,1722528648075,-500.0,0.00015342,2]
[333819018,1722528648084,-500.0,0.00015342,2]
[333819019,1722528648096,-686.04,0.00015342,2]
[333819020,1722528648106,-785.38,0.00015342,2]
[333819021,1722528648116,-500.0,0.00015342,2]
[333819022,1722528648127,-500.0,0.00015342,2]
[333819023,1722528648141,-815.61,0.00015342,2]
[333819024,1722528648151,-500.0,0.00015342,2]
[333819025,1722528648161,-812.04,0.00015342,2]
[333819026,1722528648170,-500.0,0.00015342,2]
[333819027,1722528648181,-500.0,0.00015342,2]
[333819028,1722528648192,-2585.36,0.00015342,2]
[333819029,1722528648204,-547.45,0.00015342,2]
[333819030,1722528648214,-500.0,0.00015342,2]
[333819031,1722528648224,-500.0,0.00015342,2]
[333819032,1722528648235,-1517.4,0.00015342,2]
[333819033,1722528648265,-652.72,0.00015342,2]
[333819034,1722528648274,-862.86,0.00015342,2]
[333819035,1722528648283,-500.0,0.00015342,2]
[333819036,1722528648292,-255.76576407,0.00015342,2]
[333819037,1722528648301,-500.0,0.00015342,2]
[333819038,1722528648311,-500.0,0.00015342,2]
[333819039,1722528648319,-500.0,0.00015342,2]
[333819040,1722528648329,-500.0,0.00015342,2]
[333819041,1722528648338,-500.0,0.00015342,2]
[333819042,1722528648348,-500.0,0.00015342,2]
[333819043,1722528648359,-500.0,0.00015342,2]
[333819044,1722528648368,-500.0,0.00015342,2]
[333819045,1722528648377,-500.0,0.00015342,2]
[333819046,1722528648387,-500.0,0.00015342,2]
[333819047,1722528648396,-700.06,0.00015342,2]
[333819048,1722528648407,-500.0,0.00015342,2]
[333819049,1722528648416,-500.0,0.00015342,2]
[333819050,1722528648425,-548.51,0.00015342,2]
[333819051,1722528648436,-612.69,0.00015342,2]
[333819052,1722528648445,-500.0,0.00015342,2]
[333819053,1722528648454,-1000.0,0.000155,2]
[333819054,1722528648463,-185.74473794,0.00015616,2]
[333819055,1722528648473,-500.0,0.00015616,2]
[333819056,1722528648482,-500.0,0.00015616,2]
[333819057,1722528648498,-500.0,0.00015616,2]
[333819058,1722528648516,-611.77,0.00015616,2]
[333819059,1722528648532,-500.0,0.00015616,2]
[333819060,1722528648544,-500.0,0.00015616,2]
[333819061,1722528648560,-500.0,0.00015616,2]
[333819062,1722528648576,-500.0,0.00015616,2]
[333819063,1722528648594,-500.0,0.00015616,2]
[333819064,1722528648609,-500.0,0.00015616,2]
[333819065,1722528648625,-550.1,0.00015616,2]
[333819066,1722528648642,-500.0,0.00015616,2]
[333819067,1722528648656,-500.0,0.00015616,2]
[333819068,1722528648671,-422.04124169,0.00015616,2]
[333819069,1722528648686,-500.0,0.00015616,2]
[333819070,1722528648700,-500.0,0.00015616,2]
[333819071,1722528648711,-907.32,0.00015616,2]
[333819072,1722528648724,-1331.99,0.00015616,2]
[333819073,1722528648739,-500.0,0.00015616,2]
[333819074,1722528648753,-838.19,0.00015616,2]
[333819075,1722528648782,-561.83,0.00015616,2]
[333819076,1722528648795,-500.0,0.00015616,2]
[333819077,1722528648811,-874.15,0.00015616,2]
[333819078,1722528648827,-538.3,0.00015616,2]
[333819079,1722528648838,-2132.52,0.00015616,2]
[333819080,1722528648848,-1895.04,0.00015616,2]
[333819081,1722528648860,-500.0,0.00015616,2]
[333819082,1722528648875,-500.0,0.00015616,2]
[333819083,1722528648889,-500.0,0.00015616,2]
[333819084,1722528648900,-500.0,0.00015616,2]
[333819085,1722528648913,-500.0,0.00015616,2]
[333819086,1722528648926,-500.0,0.00015616,2]
[333819087,1722528648939,-2759.59,0.00015616,2]
[333819088,1722528648950,-500.0,0.00015616,2]
[333819089,1722528648961,-500.0,0.00015616,2]
[333819090,1722528648973,-686.04,0.00015616,2]
[333819091,1722528648986,-785.38,0.00015616,2]
[333819092,1722528648998,-316.3604801,0.00015616,2]
[333819093,1722528649011,-500.0,0.00015616,2]
[333819094,1722528649024,-815.61,0.00015616,2]
[333819095,1722528649036,-500.0,0.00015616,2]
[333819096,1722528649050,-812.04,0.00015616,2]
[333819097,1722528649062,-500.0,0.00015616,2]
[333819098,1722528649074,-500.0,0.00015616,2]
[333819099,1722528649086,-2585.36,0.00015616,2]
[333819100,1722528649098,-547.45,0.00015616,2]
[333819101,1722528649111,-500.0,0.00015616,2]
[333819102,1722528649124,-500.0,0.00015616,2]
[333819103,1722528649138,-652.72,0.00015616,2]
[333819104,1722528649151,-1517.4,0.00015616,2]
[333819105,1722528649164,-862.86,0.00015616,2]
[333819106,1722528649175,-500.0,0.00015616,2]
[333819107,1722528649188,-500.0,0.00015616,2]
[333819108,1722528649201,-500.0,0.00015616,2]
[333819109,1722528649213,-500.0,0.00015616,2]
[333819110,1722528649226,-500.0,0.00015616,2]
[333819111,1722528649239,-500.0,0.00015616,2]
[333819112,1722528649251,-500.0,0.00015616,2]
[333819113,1722528649273,-500.0,0.00015616,2]
[333819114,1722528649288,-500.0,0.00015616,2]
[333819115,1722528649300,-500.0,0.00015616,2]
[333819116,1722528649312,-500.0,0.00015616,2]
[333819117,1722528649328,-700.06,0.00015616,2]
[333819118,1722528649341,-500.0,0.00015616,2]
[333819119,1722528649353,-500.0,0.00015616,2]
[333819120,1722528649366,-548.51,0.00015616,2]
[333819121,1722528649379,-612.69,0.00015616,2]
[333819122,1722528649392,-500.0,0.00015616,2]
[333819123,1722528649404,-3184.59197636,0.00015708,2]
[333819124,1722528649417,-1500.0,0.00015708,2]
[333819125,1722528649429,-2138.69543601,0.00015708,2]
[333819126,1722528649442,-10665.45915499,0.0001571,2]
[333819127,1722528649452,-150.0,0.00015735,2]
[333819128,1722528649462,-506.0,0.00015735,2]
[333819129,1722528649471,-97505.03972851,0.00015744,2]
[333819130,1722528649482,-67192.12640089,0.00015744,2]
[333819131,1722528649491,-1410.0,0.00015745,2]
[333819132,1722528649501,-4840.31763942,0.00015851,2]
[333819133,1722528650163,273.37336231,9.9e-05,2]
[333819134,1722528650197,-304.85615124,0.00013698,2]
[333819135,1722528650277,-37.04915414,0.00013698,2]
[333819136,1722528650293,-158.09469462,0.00013698,2]
[333819137,1722528650303,-500.0,0.00013698,2]
[333819138,1722528650312,-500.0,0.00013698,2]
[333819139,1722528650323,-500.0,0.00013699,2]
[333819140,1722528650332,-650.00000001,0.00013699,2]
[333819141,1722528650342,-500.0,0.00013699,2]
[333819142,1722528650351,-500.0,0.00013699,2]
[333819143,1722528650360,-500.0,0.00013699,2]
[333819144,1722528650370,-500.0,0.00013699,2]
[333819145,1722528650379,-500.0,0.00013972,2]
[333819146,1722528650389,-268.99553092,0.00013972,2]
[333819147,1722528650398,-500.0,0.00014246,2]
[333819148,1722528650407,-236.88596401,0.0001452,2]
[333819149,1722528650416,-500.0,0.0001452,2]
[333819150,1722528650425,-500.0,0.00014794,2]
[333819151,1722528650434,-500.0,0.00015068,2]
[333819152,1722528650443,-6237.03881044,0.00015851,2]
[333819153,1722528650887,-500.0,0.00013698,2]
[333819154,1722528650896,-500.0,0.00013698,2]
[333819155,1722528650905,-500.0,0.00013698,2]
[333819156,1722528650916,-500.0,0.00013972,2]
[333819157,1722528650929,-500.0,0.00014246,2]
[333819158,1722528650939,-60630.45764129,0.00015851,2]
[333819159,1722528650950,-4962.11663149,0.00015869,2]
[333819160,1722528650961,-500.0,0.0001589,2]
[333819161,1722528650972,-500.0,0.0001589,2]
[333819162,1722528650981,-500.0,0.0001589,2]
[333819163,1722528650991,-500.0,0.0001589,2]
[333819164,1722528651002,-500.0,0.0001589,2]
[333819165,1722528651023,-500.0,0.0001589,2]
[333819166,1722528651035,-500.0,0.0001589,2]
[333819167,1722528651045,-500.0,0.0001589,2]
[333819168,1722528651054,-500.0,0.0001589,2]
[333819169,1722528651064,-550.1,0.0001589,2]
[333819170,1722528651074,-500.0,0.0001589,2]
[333819171,1722528651085,-500.0,0.0001589,2]
[333819172,1722528651096,-500.0,0.0001589,2]
[333819173,1722528651106,-500.0,0.0001589,2]
[333819174,1722528651115,-500.0,0.0001589,2]
[333819175,1722528651125,-838.19,0.0001589,2]
[333819176,1722528651134,-561.83,0.0001589,2]
[333819177,1722528651148,-567.91942768,0.0001589,2]
[333819178,1722528651158,-874.15,0.0001589,2]
[333819179,1722528651167,-538.3,0.0001589,2]
[333819180,1722528651177,-2132.52,0.0001589,2]
[333819181,1722528651189,-1895.04,0.0001589,2]
[333819182,1722528651199,-302.34096073,0.0001589,2]
[333819183,1722528651209,-500.0,0.0001589,2]
[333819184,1722528651218,-500.0,0.0001589,2]
[333819185,1722528651230,-500.0,0.0001589,2]
[333819186,1722528651240,-500.0,0.0001589,2]
[333819187,1722528651251,-2759.59,0.0001589,2]
[333819188,1722528651272,-500.0,0.0001589,2]
[333819189,1722528651282,-500.0,0.0001589,2]
[333819190,1722528651294,-686.04,0.0001589,2]
[333819191,1722528651304,-785.38,0.0001589,2]
[333819192,1722528651315,-500.0,0.0001589,2]
[333819193,1722528651325,-815.61,0.0001589,2]
[333819194,1722528651336,-500.0,0.0001589,2]
[333819195,1722528651346,-812.04,0.0001589,2]
[333819196,1722528651356,-500.0,0.0001589,2]
[333819197,1722528651366,-500.0,0.0001589,2]
[333819198,1722528651375,-2585.36,0.0001589,2]
[333819199,1722528651385,-547.45,0.0001589,2]
[333819200,1722528651395,-500.0,0.0001589,2]
[333819201,1722528651405,-500.0,0.0001589,2]
[333819202,1722528651415,-652.72,0.0001589,2]
[333819203,1722528651424,-1517.4,0.0001589,2]
[333819204,1722528651434,-862.86,0.0001589,2]
[333819205,1722528651443,-500.0,0.0001589,2]
[333819206,1722528651454,-500.0,0.0001589,2]
[333819207,1722528651464,-500.0,0.0001589,2]
[333819208,1722528651473,-500.0,0.0001589,2]
[333819209,1722528651484,-500.0,0.0001589,2]
[333819210,1722528651494,-500.0,0.0001589,2]
[333819211,1722528651504,-500.0,0.0001589,2]
[333819212,1722528651526,-500.0,0.0001589,2]
[333819213,1722528651536,-500.0,0.0001589,2]
[333819214,1722528651545,-500.0,0.0001589,2]
[333819215,1722528651555,-500.0,0.0001589,2]
[333819216,1722528651565,-700.06,0.0001589,2]
[333819217,1722528651574,-500.0,0.0001589,2]
[333819218,1722528651584,-500.0,0.0001589,2]
[333819219,1722528651593,-548.51,0.0001589,2]
[333819220,1722528651602,-612.69,0.0001589,2]
[333819221,1722528651612,-500.0,0.0001589,2]
[333819222,1722528651622,-65036.09519592,0.00015951,2]
[333819223,1722528651631,-3000.0,0.00016,2]
[333819224,1722528651641,-1000.0,0.00016,2]
[333819225,1722528651650,-3000.0,0.0001601,2]
[333819226,1722528651659,-3000.0,0.0001602,2]
[333819227,1722528651670,-3000.0,0.0001603,2]
[333819228,1722528651680,-5676.18910357,0.00016038,7]
[333819229,1722528651690,-24185.24733149,0.00016038,2]
[333819230,1722528651700,-250.28853223,0.00016038,2]
[333819231,1722528651710,-3000.0,0.0001604,2]
[333819232,1722528651719,-3000.0,0.0001605,2]
[333819233,1722528651805,-3000.0,0.0001606,2]
[333819234,1722528651836,-3000.0,0.0001607,2]
[333819235,1722528651846,-3000.0,0.0001608,2]
[333819236,1722528651857,-3000.0,0.0001609,2]
[333819237,1722528651867,-3000.0,0.000161,2]
[333819238,1722528651876,-3000.0,0.0001611,2]
[333819239,1722528651886,-3000.0,0.0001612,2]
[333819240,1722528651895,-3000.0,0.0001613,2]
[333819241,1722528651905,-3000.0,0.0001614,2]
[333819242,1722528651915,-215.968,0.00016145,2]
[333819243,1722528651924,-250.0,0.00016145,2]
[333819244,1722528651935,-3000.0,0.0001615,2]
[333819245,1722528651944,-3000.0,0.0001616,2]
[333819246,1722528651954,-500.0,0.00016164,2]
[333819247,1722528651964,-227.65506148,0.00016164,2]
[333819248,1722528651974,-500.0,0.00016164,2]
[333819249,1722528651984,-479.98215408,0.00016164,2]
[333819250,1722528651993,-644.09508448,0.00016164,2]
[333819251,1722528652006,-500.0,0.00016164,2]
[333819252,1722528652023,-500.0,0.00016164,2]
[333819253,1722528652033,-500.0,0.00016164,2]
[333819254,1722528652043,-500.0,0.00016164,2]
[333819255,1722528652053,-550.1,0.00016164,2]
[333819256,1722528652063,-526.65,0.00016164,2]
[333819257,1722528652073,-500.0,0.00016164,2]
[333819258,1722528652083,-500.0,0.00016164,2]
[333819259,1722528652093,-500.0,0.00016164,2]
[333819260,1722528652102,-500.0,0.00016164,2]
[333819261,1722528652112,-838.19,0.00016164,2]
[333819262,1722528652122,-561.83,0.00016164,2]
[333819263,1722528652135,-874.15,0.00016164,2]
[333819264,1722528652144,-538.3,0.00016164,2]
[333819265,1722528652155,-2132.52,0.00016164,2]
[333819266,1722528652166,-1895.04,0.00016164,2]
[333819267,1722528652177,-500.0,0.00016164,2]
[333819268,1722528652186,-500.0,0.00016164,2]
[333819269,1722528652195,-500.0,0.00016164,2]
[333819270,1722528652206,-500.0,0.00016164,2]
[333819271,1722528652216,-2759.59,0.00016164,2]
[333819272,1722528652227,-500.0,0.00016164,2]
[333819273,1722528652237,-500.0,0.00016164,2]
[333819274,1722528652248,-686.04,0.00016164,2]
[333819275,1722528652263,-785.38,0.00016164,2]
[333819276,1722528652272,-500.0,0.00016164,2]
[333819277,1722528652281,-815.61,0.00016164,2]
[333819278,1722528652291,-500.0,0.00016164,2]
[333819279,1722528652301,-812.04,0.00016164,2]
[333819280,1722528652311,-500.0,0.00016164,2]
[333819281,1722528652320,-500.0,0.00016164,2]
[333819282,1722528652330,-2585.36,0.00016164,2]
[333819283,1722528652340,-547.45,0.00016164,2]
[333819284,1722528652349,-500.0,0.00016164,2]
[333819285,1722528652359,-500.0,0.00016164,2]
[333819286,1722528652369,-652.72,0.00016164,2]
[333819287,1722528652379,-1517.4,0.00016164,2]
[333819288,1722528652389,-862.86,0.00016164,2]
[333819289,1722528652398,-500.0,0.00016164,2]
[333819290,1722528652408,-500.0,0.00016164,2]
[333819291,1722528652417,-500.0,0.00016164,2]
[333819292,1722528652427,-500.0,0.00016164,2]
[333819293,1722528652436,-500.0,0.00016164,2]
[333819294,1722528652446,-500.0,0.00016164,2]
[333819295,1722528652456,-500.0,0.00016164,2]
[333819296,1722528652466,-500.0,0.00016164,2]
[333819297,1722528652476,-500.0,0.00016164,2]
[333819298,1722528652486,-500.0,0.00016164,2]
[333819299,1722528652495,-700.06,0.00016164,2]
[333819300,1722528652505,-500.0,0.00016164,2]
[333819301,1722528652520,-500.0,0.00016164,2]
[333819302,1722528652530,-548.51,0.00016164,2]
[333819303,1722528652540,-612.69,0.00016164,2]
[333819304,1722528652549,-500.0,0.00016164,2]
[333819305,1722528652558,-3000.0,0.0001617,2]
[333819306,1722528652568,-3000.0,0.0001618,2]
[333819307,1722528652577,-3000.0,0.0001619,2]
[333819308,1722528652587,-3000.0,0.000162,2]
[333819309,1722528652596,-3000.0,0.0001621,2]
[333819310,1722528652606,-3000.0,0.0001622,2]
[333819311,1722528652615,-3000.0,0.0001623,2]
[333819312,1722528652625,-3000.0,0.0001624,2]
[333819313,1722528652634,-3000.0,0.0001625,2]
[333819314,1722528652644,-3000.0,0.0001626,2]
[333819315,1722528652654,-3000.0,0.0001627,2]
[333819316,1722528652663,-3000.0,0.0001628,2]
[333819317,1722528652673,-3000.0,0.0001629,2]
[333819318,1722528652681,-3000.0,0.000163,2]
[333819319,1722528652691,-3000.0,0.0001631,2]
[333819320,1722528652700,-3000.0,0.0001632,2]
[333819321,1722528652709,-4933.468904,0.0001633,2]
[333819322,1722528652718,-4586.31960398,0.00016347,2]
[333819323,1722528652728,-500.0,0.00016438,2]
[333819324,1722528652738,-500.0,0.00016438,2]
[333819325,1722528652747,-500.0,0.00016438,2]
[333819326,1722528652760,-200.0,0.00016438,2]
[333819327,1722528652771,-200.0,0.00016438,2]
[333819328,1722528652780,-200.0,0.00016438,2]
[333819329,1722528652790,-200.0,0.00016438,2]
[333819330,1722528652800,-200.0,0.00016438,2]
[333819331,1722528652810,-200.0,0.00016438,2]
[333819332,1722528652819,-200.0,0.00016438,2]
[333819333,1722528652829,-187.3148446,0.00016438,2]
[333819334,1722528652838,-500.0,0.00016438,2]
[333819335,1722528652847,-500.0,0.00016438,2]
[333819336,1722528652857,-500.0,0.00016438,2]
[333819337,1722528652866,-550.1,0.00016438,2]
[333819338,1722528652876,-500.0,0.00016438,2]
[333819339,1722528652886,-500.0,0.00016438,2]
[333819340,1722528652895,-258.44594593,0.00016438,2]
[333819341,1722528652904,-254.3,0.00016438,2]
[333819342,1722528652914,-500.0,0.00016438,2]
[333819343,1722528652923,-838.19,0.00016438,2]
[333819344,1722528652932,-561.83,0.00016438,2]
[333819345,1722528652942,-874.15,0.00016438,2]
[333819346,1722528652951,-538.3,0.00016438,2]
[333819347,1722528652960,-2132.52,0.00016438,2]
[333819348,1722528652970,-1895.04,0.00016438,2]
[333819349,1722528652979,-500.0,0.00016438,2]
[333819350,1722528652988,-500.0,0.00016438,2]
[333819351,1722528652997,-500.0,0.00016438,2]
[333819352,1722528653007,-500.0,0.00016438,2]
[333819353,1722528653021,-2759.59,0.00016438,2]
[333819354,1722528653030,-500.0,0.00016438,2]
[333819355,1722528653040,-472.16081982,0.00016438,2]
[333819356,1722528653050,-686.04,0.00016438,2]
[333819357,1722528653059,-785.38,0.00016438,2]
[333819358,1722528653068,-500.0,0.00016438,2]
[333819359,1722528653077,-815.61,0.00016438,2]
[333819360,1722528653087,-500.0,0.00016438,2]
[333819361,1722528653096,-812.04,0.00016438,2]
[333819362,1722528653105,-533.23343954,0.00016438,2]
[333819363,1722528653115,-161.70230695,0.00016438,2]
[333819364,1722528653124,-2585.36,0.00016438,2]
[333819365,1722528653134,-547.45,0.00016438,2]
[333819366,1722528653148,-500.0,0.00016438,2]
[333819367,1722528653158,-500.0,0.00016438,2]
[333819368,1722528653168,-652.72,0.00016438,2]
[333819369,1722528653178,-1517.4,0.00016438,2]
[333819370,1722528653190,-862.86,0.00016438,2]
[333819371,1722528653200,-500.0,0.00016438,2]
[333819372,1722528653209,-500.0,0.00016438,2]
[333819373,1722528653219,-500.0,0.00016438,2]
[333819374,1722528653229,-500.0,0.00016438,2]
[333819375,1722528653238,-500.0,0.00016438,2]
[333819376,1722528653248,-500.0,0.00016438,2]
[333819377,1722528653264,-500.0,0.00016438,2]
[333819378,1722528653274,-500.0,0.00016438,2]
[333819379,1722528653284,-598.51914452,0.00016438,2]
[333819380,1722528653293,-500.0,0.00016438,2]
[333819381,1722528653303,-700.06,0.00016438,2]
[333819382,1722528653312,-500.0,0.00016438,2]
[333819383,1722528653322,-500.0,0.00016438,2]
[333819384,1722528653331,-548.51,0.00016438,2]
[333819385,1722528653341,-612.69,0.00016438,2]
[333819386,1722528653350,-500.0,0.00016438,2]
[333819387,1722528653359,-1000.0,0.000165,2]
[333819388,1722528653368,-800.0,0.00016619,2]
[333819389,1722528653378,-500.0,0.00016712,2]
[333819390,1722528653387,-500.0,0.00016712,2]
[333819391,1722528653396,-500.0,0.00016712,2]
[333819392,1722528653405,-500.0,0.00016712,2]
[333819393,1722528653415,-500.0,0.00016712,2]
[333819394,1722528653424,-500.0,0.00016712,2]
[333819395,1722528653433,-550.1,0.00016712,2]
[333819396,1722528653442,-500.0,0.00016712,2]
[333819397,1722528653452,-500.0,0.00016712,2]
[333819398,1722528653462,-500.0,0.00016712,2]
[333819399,1722528653471,-838.19,0.00016712,2]
[333819400,1722528653481,-561.83,0.00016712,2]
[333819401,1722528653490,-874.15,0.00016712,2]
[333819402,1722528653499,-538.3,0.00016712,2]
[333819403,1722528653513,-2132.52,0.00016712,2]
[333819404,1722528653522,-1895.04,0.00016712,2]
[333819405,1722528653531,-500.0,0.00016712,2]
[333819406,1722528653540,-500.0,0.00016712,2]
[333819407,1722528653549,-500.0,0.00016712,2]
[333819408,1722528653558,-500.0,0.00016712,2]
[333819409,1722528653567,-2759.59,0.00016712,2]
[333819410,1722528653576,-500.0,0.00016712,2]
[333819411,1722528653586,-686.04,0.00016712,2]
[333819412,1722528653595,-785.38,0.00016712,2]
[333819413,1722528653605,-500.0,0.00016712,2]
[333819414,1722528653615,-815.61,0.00016712,2]
[333819415,1722528653624,-500.0,0.00016712,2]
[333819416,1722528653634,-812.04,0.00016712,2]
[333819417,1722528653644,-2585.36,0.00016712,2]
[333819418,1722528653654,-547.45,0.00016712,2]
[333819419,1722528653663,-500.0,0.00016712,2]
[333819420,1722528653673,-500.0,0.00016712,2]
[333819421,1722528653683,-652.72,0.00016712,2]
[333819422,1722528653692,-1517.4,0.00016712,2]
[333819423,1722528653702,-862.86,0.00016712,2]
[333819424,1722528653712,-500.0,0.00016712,2]
[333819425,1722528653721,-500.0,0.00016712,2]
[333819426,1722528653730,-500.0,0.00016712,2]
[333819427,1722528653739,-500.0,0.00016712,2]
[333819428,1722528653749,-500.0,0.00016712,2]
[333819429,1722528653764,-627.50981848,0.00016712,2]
[333819430,1722528653774,-500.0,0.00016712,2]
[333819431,1722528653783,-500.0,0.00016712,2]
[333819432,1722528653794,-500.0,0.00016712,2]
[333819433,1722528653804,-700.06,0.00016712,2]
[333819434,1722528653813,-500.0,0.00016712,2]
[333819435,1722528653822,-500.0,0.00016712,2]
[333819436,1722528653832,-548.51,0.00016712,2]
[333819437,1722528653842,-612.69,0.00016712,2]
[333819438,1722528653852,-500.0,0.00016712,2]
[333819439,1722528653862,-500.0,0.00016986,2]
[333819440,1722528653871,-500.0,0.00016986,2]
[333819441,1722528653881,-598.07656067,0.00016986,2]
[333819442,1722528653890,-500.0,0.00016986,2]
[333819443,1722528653900,-500.0,0.00016986,2]
[333819444,1722528653910,-500.0,0.00016986,2]
[333819445,1722528653919,-550.1,0.00016986,2]
[333819446,1722528653928,-500.0,0.00016986,2]